{"text_format":"2","workbook":"xlsx","n_sheets":1,"sheets":["Field=VariantName"],"not_rendered":{"charts":0,"images":1,"macros":0,"external_links":0,"defined_names":2,"comments":0,"pivot_tables":0},"unopened":[],"bounds":{"document_bytes":16777216,"sheet_cells":100000,"run_cost":"one","rows_first":2000,"rows_last":500,"rows_between":2000,"halvings":0,"cell_chars":16384,"cell_head_chars":4096},"cells_cut":0,"cells_raw":0,"read":"whole","date_system":"1900"}

{"sheet":"Field=VariantName","index":0,"n_rows":142,"n_cols":13,"rows_kept":142,"cut":false,"hidden":false,"merged":[[2,0,2,1],[3,0,3,1],[2,9,2,12],[3,9,3,12],[0,0,1,2],[0,3,0,8],[1,3,1,8],[0,9,0,11],[1,9,1,11]]}
[null,null,null,{"$f":"UPPER(\"Bill of Materials\")","v":"BILL OF MATERIALS"},{"$nulls":5},"Rev:"]
[null,null,null,"Cambox_2026",{"$nulls":5},"Production QTY"]
["Customer:",null,"Aithings","HW version:","4.0",null,"Checked by:",null,null,"Date created:"]
["Board code:",null,"CameraBox","Prepared by:","Hainv",null,"Approved by:",null,null,"06/03/2026"]
["STT","Internal Code","Category","Description","Manufacture","Partnumber","Manufacturer 2","Manufacturer's Part Number 2","Designator","Quantity","Unit","Mounting type","Note"]
[{"$f":"ROW(A6)-ROW($A$5)","v":1},null,null,"low-power, quad-core Cortex-A7 processor from Rockchip, designed for multimedia and IoT applications, offering efficient performance for compact devices",{"$nulls":4},"U?",2]
[{"$f":"ROW(A7)-ROW($A$5)","v":2},null,"IC","4Ch HD/SD Analog Video Decoder","CHIPUP","XS9922B",null,null,"U6",1,null,"ASM"]
[{"$f":"ROW(A8)-ROW($A$5)","v":3},null,"Product","62x62mm","Promise","TannhietSOM",null,null,"H1",1,null,"ASM"]
[{"$f":"ROW(A9)-ROW($A$5)","v":4},null,"IC","RK3562 SOM - System on Module","RONGPIN","RK3562",null,null,"M1",1,null,"LGA"]
[{"$f":"ROW(A10)-ROW($A$5)","v":5},null,"Capacitor","100V 2.2uF X7R ±10% 1206 Multilayer Ceramic Capacitors MLCC - SMD/SMT ROHS","CCTC","CCTC TCC1206X7R225K101HT",null,null,"C1",1,null,"SMD"]
[{"$f":"ROW(A11)-ROW($A$5)","v":6},null,"Capacitor","100V 100nF X7R ±10% 1206 Multilayer Ceramic Capacitors MLCC - SMD/SMT ROHS","Yageo","CC1206KKX7R0BB104",null,null,"C2, C19",2,null,"SMD"]
[{"$f":"ROW(A12)-ROW($A$5)","v":7},null,"Capacitor","10uF 100V 63mA@120Hz ±20% SMD,D6.3xL5.4mm Aluminum Electrolytic Capacitors - SMD ROHS","ROQANG","RVT2A100M0605",null,null,"C3, C21",2,null,"SMD"]
[{"$f":"ROW(A13)-ROW($A$5)","v":8},null,"Capacitor","10uF 50V Ceramic Capacitor X7R 1210","SAMWHA","CS3225X7R106K500NRL",null,null,"C4, C7, C10, C16, C18",5,null,"SMD"]
[{"$f":"ROW(A14)-ROW($A$5)","v":9},null,"Capacitor","50V 100nF X7R ±10% 0603 Multilayer Ceramic Capacitors MLCC - SMD/SMT ROHS","Yageo","CC0603KRX7R9BB104",null,null,"C5, C8, C9, C22, C25, C35, C37, C106, C156, C158, C193",11,null,"SMD"]
[{"$f":"ROW(A15)-ROW($A$5)","v":10},null,"Capacitor","22pF ±5% 50V Ceramic Capacitor NP0 0402","Yageo","CC0402JRNPO9BN220",null,null,"C6, C17",2,null,"SMD"]
[{"$f":"ROW(A16)-ROW($A$5)","v":11},null,"Capacitor","680pF ±10% 50V Ceramic Capacitor X7R 0402","FOJAN","FCC0402B681K500AT",null,null,"C11",1,null,"SMD"]
[{"$f":"ROW(A17)-ROW($A$5)","v":12},null,"Capacitor","16V 100nF X7R ±10% 0402 Multilayer Ceramic Capacitors MLCC - SMD/SMT ROHS","Yageo","CC0402KRX7R7BB104",null,null,"C12, C32, C33, C39, C42, C43, C50, C51, C52, C54, C56, C58, C60, C61, C62, C63, C64, C65, C66, C67, C68, C69, C72, C73, C74, C75, C76, C77, C78, C79, C80, C82, C84, C86, C87, C88, C89, C91, C93, C94, C96, C97, C98, C99, C100, C108, C111, C113, C116, C118, C119, C120, C121, C124, C125, C126, C127, C128, C129, C130, C131, C132, C135, C137, C148, C160, C166, C167, C169, C171, C172, C173, C175, C178, C181, C182, C183, C184, C186, C189, C191, C192",82,null,"SMD"]
[{"$f":"ROW(A18)-ROW($A$5)","v":13},null,"Capacitor","100uF 50V 146mA@120Hz ±20% SMD,D8xL10.2mm Aluminum Electrolytic Capacitors - SMD ROHS","ROQANG","RT1H101M0810",null,null,"C13, C45",2,null,"SMD"]
[{"$f":"ROW(A19)-ROW($A$5)","v":14},null,"Capacitor","8.2nF ±10% 50V Ceramic Capacitor X7R 0402","Yageo","CC0402KRX7R9BB822",null,null,"C14",1,null,"SMD"]
[{"$f":"ROW(A20)-ROW($A$5)","v":15},null,"Capacitor","CAP CER 1UF 50V X5R 0603","Hottech","C0603X5R105K500NT",null,null,"C15, C48, C49, C57, C59",5,null,"SMD"]
[{"$f":"ROW(A21)-ROW($A$5)","v":16},null,"Capacitor","16V 47uF X5R ±20% 1206 Multilayer Ceramic Capacitors MLCC - SMD/SMT ROHS","Taiyo Yuden","EMK316BBJ476ML-T",null,null,"C20",1,null,"SMD"]
[{"$f":"ROW(A22)-ROW($A$5)","v":17},null,"Capacitor","50V 470nF X7R ±10% 0603 Multilayer Ceramic Capacitors MLCC - SMD/SMT ROHS","Yageo","CC0603KRX7R9BB474",null,null,"C23",1,null,"SMD"]
[{"$f":"ROW(A23)-ROW($A$5)","v":18},null,"Capacitor","560 pF ±10% 50V Ceramic Capacitor X7R 0603 (1608 Metric)","Yageo","CC0603KRX7R9BB561",null,null,"C24",1,null,"SMD"]
[{"$f":"ROW(A24)-ROW($A$5)","v":19},null,"Capacitor","50V 75pF NP0 ±5% 0603 Multilayer Ceramic Capacitors MLCC - SMD/SMT ROHS","Yageo","CC0603JRNPO9BN750",null,null,"C26",1,null,"SMD"]
[{"$f":"ROW(A25)-ROW($A$5)","v":20},null,"Capacitor","50V 56nF X7R ±10% 0603 Multilayer Ceramic Capacitors MLCC - SMD/SMT ROHS","Yageo","CC0603KRX7R9BB563",null,null,"C27",1,null,"SMD"]
[{"$f":"ROW(A26)-ROW($A$5)","v":21},null,"Capacitor","CAP CER 10uF 16V X5R 0805","Hottech","C0805X5R106K160NT",null,null,"C31, C38, C55, C70, C71, C81, C83, C85, C90, C92, C95, C101, C107, C110, C112, C115, C117, C122, C123, C136, C138, C155, C165, C168, C185, C188, C190",27,null,"SMD"]
[{"$f":"ROW(A27)-ROW($A$5)","v":22},null,"Capacitor","4.7uF 35V ±10% 0603 Multilayer Ceramic Capacitors MLCC - SMD/SMT ROHS","SANYEAR","C0603X5R475K350NT",null,null,"C34, C36, C157",3,null,"SMD"]
[{"$f":"ROW(A28)-ROW($A$5)","v":23},null,"Capacitor","50V 100pF NP0 ±1% 0402 Multilayer Ceramic Capacitors MLCC - SMD/SMT ROHS","Yageo","CC0402FRNPO9BN101",null,null,"C40, C41, C44, C146, C152, C153, C161, C162",8,null,"SMD"]
[{"$f":"ROW(A29)-ROW($A$5)","v":24},null,"Capacitor","C0G 33pF 50V ±5% 0402 Multilayer Ceramic Capacitors MLCC - SMD/SMT ROHS","Samsung Electro-Mechanics","CL05C330JB5NNNC",null,null,"C46, C47, C149, C150, C151, C159, C176, C177",8,null,"SMD"]
[{"$f":"ROW(A30)-ROW($A$5)","v":25},null,"Capacitor","CAP CER 22UF 6.3V X5R 0603","Samsung Electro-Mechanics","CL10A226MQ8NRNE",null,null,"C53",1,null,"SMD"]
[{"$f":"ROW(A31)-ROW($A$5)","v":26},null,"Capacitor","CAP CER 10uF 50V X5R 1206","Hottech","C1206X5R106K500NT",null,null,"C105",1,null,"SMD"]
[{"$f":"ROW(A32)-ROW($A$5)","v":27},null,"Capacitor","50V 12pF NP0 ±1% 0402 Multilayer Ceramic Capacitors MLCC - SMD/SMT ROHS","Yageo","CC0402FRNPO9BN120",null,null,"C133, C134",2,null,"SMD"]
[{"$f":"ROW(A33)-ROW($A$5)","v":28},null,"Capacitor","100uF 10V 1.2Ω@100kHz ±10% CASE-B-3528-21(mm) Tantalum Capacitors ROHS","KEMET","T491B107K010AT",null,null,"C139, C145",2,null,"SMD"]
[{"$f":"ROW(A34)-ROW($A$5)","v":29},null,"Capacitor","50V 100nF X7R ±10% 0805 Multilayer Ceramic Capacitors MLCC - SMD/SMT ROHS","Taiyo Yuden","UMK212B7104KG-T",null,null,"C140, C144",2,null,"SMD"]
[{"$f":"ROW(A35)-ROW($A$5)","v":30},null,"Capacitor","50V 33pF C0G ±5% 0805 Multilayer Ceramic Capacitors MLCC - SMD/SMT ROHS","FH(Guangdong Fenghua Advanced Tech)","0805CG330J500NT",null,null,"C141, C143",2,null,"SMD"]
[{"$f":"ROW(A36)-ROW($A$5)","v":31},null,"Capacitor","50V 10pF C0G ±5% 0805 Multilayer Ceramic Capacitors MLCC - SMD/SMT ROHS","PSA(Prosperity Dielectrics)","FN21N100J500PAG",null,null,"C142",1,null,"SMD"]
[{"$f":"ROW(A37)-ROW($A$5)","v":32},null,"Capacitor","2.2uF ±10% 6.3V X5R 0603 Multilayer Ceramic Capacitors MLCC - SMD/SMT RoHS","\tSamsung Electro-Mechanics","CL10A225KQ8NNNC",null,null,"C154",1,null,"SMD"]
[{"$f":"ROW(A38)-ROW($A$5)","v":33},null,"Capacitor","16V 1uF X5R ±10% 0402 Multilayer Ceramic Capacitors MLCC - SMD/SMT ROHS","Samsung Electro-Mechanics","CL05A105KO5NNNC",null,null,"C170, C174",2,null,"SMD"]
[{"$f":"ROW(A39)-ROW($A$5)","v":34},null,"Capacitor","10V 1Ω@100kHz 47uF ±10% CASE-B-3528-21(mm) Tantalum Capacitors ROHS","Kyocera AVX","TAJB476K010RNJ",null,null,"C179, C180",2,null,"SMD"]
[{"$f":"ROW(A40)-ROW($A$5)","v":35},null,"Connector","Battery Clip Nickel -25℃~+85℃ Phosphor Bronze CR2016 SMD Blade Type Power Connector Assemblies RoHS","MYOUNG","MY-2016-02",null,null,"J5",1,null,"SMD"]
[{"$f":"ROW(A41)-ROW($A$5)","v":36},null,"Connector","NANO SIM+TF /NANO SIM*2","MUP","M6110-01",null,null,"J6",1,null,"SMD"]
[{"$f":"ROW(A42)-ROW($A$5)","v":37},null,"Connector","1 Inner pin IPEX Board-End 1.25mm -40℃~+90℃ 3GHz 50Ω 2mm SMD Coaxial Connectors (RF) ROHS","Shenzhen Kinghelm Elec","KH-IPEX-K501-29",null,null,"J7, J9",2,null,"SMD"]
[{"$f":"ROW(A43)-ROW($A$5)","v":38},null,"Connector","67P Surface Mount, Right Angle SMD,P=0.5mm,Surface Mount,Right Angle Centronics Connectors ROHS","LOTES","APCI0146-P001A",null,null,"J13",1,null,"SMD"]
[{"$f":"ROW(A44)-ROW($A$5)","v":39},null,"Connector","Card Connector NANO SIM Hinged Lid Surface Mount",null,"C7802-02",null,null,"J23",1,null,"SMD"]
[{"$f":"ROW(A45)-ROW($A$5)","v":40},null,"Crystal","Crystal 27MHz 10ppm 20pF 60Ω SMD2016-4P","MDH","2.D.1.270002002",null,null,"X1",1,null,"SMD"]
[{"$f":"ROW(A46)-ROW($A$5)","v":41},null,"Crystal","CRYSTAL 32.7680KHZ 12.5PF SMD","Abracon LLC","ABS07-32.768KHZ-T",null,null,"X2",1,null,"SMD"]
[{"$f":"ROW(A47)-ROW($A$5)","v":42},null,"Crystal","25MHz 9pF ±10ppm SMD2016-4P Crystals ROHS","TKD","SX20Y025000B91T002",null,null,"X3",1,null,"SMD"]
[{"$f":"ROW(A48)-ROW($A$5)","v":43},null,"Diode","0402 Varistors ROHS","TDK","B72590D50H160",null,null,"D1, D5, D12, D13, D18, D20, D23, D24, D25, D26, D27, D28, D29, D37, D38, D49",16,null,"SMD"]
[{"$f":"ROW(A49)-ROW($A$5)","v":44},null,"Diode","DFN1006-2 TVS Diodes ROHS","Leiditech","LM-AZ6118-01F",null,null,"D2, D4, D42, D43, D50, D51",6,null,"SMD"]
[{"$f":"ROW(A50)-ROW($A$5)","v":45},null,"Diode","275A 1 Independent 60V 620mV@7A 7A Power-DI-5 Single Diodes RoHS","DIODES","PDS760-13",null,null,"D3",1,null,"SMD"]
[{"$f":"ROW(A51)-ROW($A$5)","v":46},null,"Diode","40V Independent 500mV@3A 3A SMA(DO-214AC) Schottky Diodes ROHS","Guangdong Hottech","SS34A",null,null,"D6",1,null,"SMD"]
[{"$f":"ROW(A52)-ROW($A$5)","v":47},null,"Diode","Unidirectional 5V (Max) 6.2V 18.6V 9.4A SOD-523 TVS RoHs","Tak cheong","ESD5Z5V0",null,null,"D8, D9, D10, D11, D14, D15, D16, D17, D30",9,null,"SMD"]
[{"$f":"ROW(A53)-ROW($A$5)","v":48},null,"Diode","30V 400mV 200mA SOT-23 Schottky Diodes ROHS","LRC","LBAT54CLT1G",null,null,"D19",1,null,"SMD"]
[{"$f":"ROW(A54)-ROW($A$5)","v":49},null,"Diode","3A@8/20us 23V 70W@8/20us 6V 5V DFN1006-2L TVS Diodes RoHS","Wayon","WE05DGCF-B",null,null,"D35",1,null,"SMD"]
[{"$f":"ROW(A55)-ROW($A$5)","v":50},null,"Diode","43.6A 9.2V 400W 6.4V Unidirectional 5V SOD-123 TVS Diodes RoHS","FUXINSEMI","PTVS5V0S1UR",null,null,"D39, D40, D41, D44, D45",5,null,"SMD"]
[{"$f":"ROW(A56)-ROW($A$5)","v":51},null,"Diode","DIODE GEN PURP 1KV 1A SMA","Hottech","M7",null,null,"D47, D48",2,null,"SMD"]
[{"$f":"ROW(A57)-ROW($A$5)","v":52},null,"Diode","Independent Type 10A 1.1V@10A 1kV SMC(DO-214AB) Diodes - General Purpose ROHS","GOODWORK","S10M",null,null,"D52",1,null,"SMD"]
[{"$f":"ROW(A58)-ROW($A$5)","v":53},null,"Diode","Unidirectional 36V 40V 58.1V 3.4A SOD-123FL TVS RoHS","MDD(Microdiode Semiconductor)","SMF36A",null,null,"D53",1,null,"SMD"]
[{"$f":"ROW(A59)-ROW($A$5)","v":54},null,"Diode","DIODE SCHOTTKY 60V 3A SMAF","HY","SS36F",null,null,"D54, D55",2,null,"SMD"]
[{"$f":"ROW(A60)-ROW($A$5)","v":55},null,"Ferrite Bead","10mΩ ±25% 10Ω@100MHz 0603 Ferrite Beads and Chips RoHS","YJYCOIN","YI160808U100-5R0T",null,null,"E1, E2, E3, E4, E16, E22, E30, E31, E32, E33",10,null,"SMD"]
[{"$f":"ROW(A61)-ROW($A$5)","v":56},null,"Ferrite Bead","FERRITE BEAD 1 KOHM 0805 1.5A","Sunlord","UPZ2012E102-1R5TF",null,null,"E6, E15, E25, E26, E27, E28",6,null,"SMD"]
[{"$f":"ROW(A62)-ROW($A$5)","v":57},null,"Ferrite Bead","60Ω@100MHz 1 Line Ferrite Bead 0402 600mA 150mΩ","FH","CBW100505U600T",null,null,"E7, E8, E9, E10, E11, E12, E13, E14, E17, E18, E19, E20, E21",13,null,"SMD"]
[{"$f":"ROW(A63)-ROW($A$5)","v":58},null,"Ferrite Bead","50mΩ ±25% 10Ω@100MHz 0603 Ferrite Beads and Chips RoHS","FH","CBG160808U100T",null,null,"E23, E24",2,null,"SMD"]
[{"$f":"ROW(A64)-ROW($A$5)","v":59},null,"IC","2.5MHz Buck Adjustable 800mV~28V 5A SOIC-8-EP Voltage Regulators - DC DC Switching Regulators RoHS","TI","LMR14050SDDAR",null,null,"U1",1,null,"SMD"]
[{"$f":"ROW(A65)-ROW($A$5)","v":60},null,"IC","Buck 1MHz Adjustable 600mV~7.3V 3A SOT23-5 Voltage Regulators - DC DC Switching Regulators RoHS","etasolution","ETA3409S2F",null,null,"U2, U7",2,null,"SMD"]
[{"$f":"ROW(A66)-ROW($A$5)","v":61},null,"IC","IC REG CTRLR MULT TOP 10MSOP","Texas Instruments","LM3481MMX/NOPB",null,null,"U3",1,null,"SMD"]
[{"$f":"ROW(A67)-ROW($A$5)","v":62},null,"IC","500mA, low IQ, high precision, adjustable ultra-low dropout voltage regulator with enable function","TI","TLV75801PDBVR",null,null,"U5, U8, U9, U10",4,null,"SMD"]
[{"$f":"ROW(A68)-ROW($A$5)","v":63},null,"IC","IC DRVR/RCVR MULTCH RS232 16SOIC","Texas Instruments","MAX3232CDR",null,null,"U11, U14, U15",3,null,"SMD"]
[{"$f":"ROW(A69)-ROW($A$5)","v":64},null,"IC","16-bit I2C-bus I/O port with interrupt","NOVOSENSE","NCA9555",null,null,"U12, U13",2,null,"SMD"]
[{"$f":"ROW(A70)-ROW($A$5)","v":65},null,"IC","SOP-8 Real Time Clocks ROHS","LANKE","LK8563T",null,null,"U16",1,null,"SMD"]
[{"$f":"ROW(A71)-ROW($A$5)","v":66},null,"IC","SOT-363-6 ESD and Surge Protection (TVS/ESD) ROHS","TECH PUBLIC","SMF05CT1G-P",null,null,"U18",1,null,"SMD"]
[{"$f":"ROW(A72)-ROW($A$5)","v":67},null,"IC","SOT-26 ESD and Surge Protection (TVS/ESD) ROHS","Leiditech","SR05-04A",null,null,"U19",1,null,"SMD"]
[{"$f":"ROW(A73)-ROW($A$5)","v":68},null,"IC","Ethernet Transceiver 3.3V QFN-32-EP(5x5) Drivers, Receivers, Transceivers RoHS","Motorcomm","YT8512H",null,null,"U20",1,null,"SMD"]
[{"$f":"ROW(A74)-ROW($A$5)","v":69},null,"IC","2mV 25nA Dual channel SOIC-8 Comparators ROHS","Texas Instruments","LM393DR",null,null,"U21",1,null,"SMD"]
[{"$f":"ROW(A75)-ROW($A$5)","v":70},null,"IC","3.3V 5.5V Positive Fixed SOT-23-5 Voltage Regulators - Linear, Low Drop Out (LDO) Regulators RoHS","TI","TLV71333PDBVR",null,null,"U?",1,null,"SMD"]
[{"$f":"ROW(A76)-ROW($A$5)","v":71},null,"Inductor","8A 2.2uH ±20% 8.8A 12.5mΩ SMD,7x6.6mm Fixed Inductors RoHS","zoomdo electronics","ZD0650-2R2M",null,null,"L1",1,null,"SMD"]
[{"$f":"ROW(A77)-ROW($A$5)","v":72},null,"Inductor","6A 6.8uH ±20% 39mΩ 10A SMD,7.1x6.6mm Fixed Inductors RoHS","PROD Tech","PSPMAA0605H-6R8M-ANP",null,null,"L2",1,null,"SMD"]
[{"$f":"ROW(A78)-ROW($A$5)","v":73},null,"Inductor","3.3A 22uH ±20% 7A SMD,12.2x12.2mm Arrays, Signal Transformers RoHS","Sumida","CDRCH12D78BNP-220MC",null,null,"L3",1,null,"SMD"]
[{"$f":"ROW(A79)-ROW($A$5)","v":74},null,"Inductor","2A 2.2uH Magnetic Shielded Inductor ±20% 2A 60mΩ SMD,3x3mm Fixed Inductors RoHS","ZE","ZNR3015ST2R2M",null,null,"L4, L6",2,null,"SMD"]
[{"$f":"ROW(A80)-ROW($A$5)","v":75},null,"Inductor","90Ω@100MHz 5Ω 2 SMD-4P,0.8x0.6mm Common Mode Filters ROHS","Murata Electronics","DLM0NSN900HY2D",null,null,"L8",1,null,"SMD"]
[{"$f":"ROW(A81)-ROW($A$5)","v":76},null,"Inductor","180mA 68nH ±5% 1.4Ω 0402 Fixed Inductors RoHS","FH","VHF100505HQ68NJT",null,null,"L9",1,null,"SMD"]
[{"$f":"ROW(A82)-ROW($A$5)","v":77},null,"LED","20mA 180mcd Colorless Transparent Lens 565nm~575nm -20℃~+85℃ Positive Stick Yellow-green 120° 50mW 2.4V 0603 LED Indication - Discrete ROH","XINGLIGHT","XL-1608SYGC-04",null,null,"D21, D32, D36",3,null,"SMD"]
[{"$f":"ROW(A83)-ROW($A$5)","v":78},null,"LED","20mA 225mcd Colorless Transparent Lens -20℃~+85℃ Positive Stick 620nm~630nm Red 120° 50mW 2.3V 0603 LED Indication - Discrete ROH","XINGLIGHT","XL-1608SURC-06",null,null,"D22, D33, D46",3,null,"SMD"]
[{"$f":"ROW(A84)-ROW($A$5)","v":79},null,"LED","LED YELLOW CLEAR 0603 SMD","Wurth Electronics Inc.","150060YS75000",null,null,"D31",1,null,"SMD"]
[{"$f":"ROW(A85)-ROW($A$5)","v":80},null,"Module","GNSS Module with GPS, GLONASS, BDS, Galileo, QZSS, High Sensitivity, Low Power Consumption","SIMCom Wireless Solutions","SIM65M-C",null,null,"M2",1,null,"SMD"]
[{"$f":"ROW(A86)-ROW($A$5)","v":81},null,"Module","Module Sim A7600C","SIMCOM","A7600C-L1",null,null,"U17",1,null,"SMD"]
[{"$f":"ROW(A87)-ROW($A$5)","v":82},null,"MOSFET","N-Channel 30V 0.1A 0.35W Surface Mount SOT-23","JSCJ","2SK3018",null,null,"Q1, Q2, Q5, Q6, Q7, Q8, Q9, Q10, Q11",9,null,"SMD"]
[{"$f":"ROW(A88)-ROW($A$5)","v":83},null,"MOSFET","100V 15A 49mΩ@10V,5A 2.8W 3.2V 1 N-Channel VSONP-8(3.1x3.1) MOSFETs ROHS","Texas Instruments","CSD19538Q3A",null,null,"Q3",1,null,"SMD"]
[{"$f":"ROW(A89)-ROW($A$5)","v":84},null,"MOSFET","MOSFET P-CH 30V 4.2A SOT-23","ASDsemi","ASDM3401ZA-R",null,null,"Q13",1,null,"SMD"]
[{"$f":"ROW(A90)-ROW($A$5)","v":85},null,"MOSFET","SOT-23-3 MOSFETs P-Chanel ROHS","TECH PUBLIC","SI2333CDS",null,null,"Q14, Q20, Q35, Q36, Q39",5,null,"SMD"]
[{"$f":"ROW(A91)-ROW($A$5)","v":86},null,"MOSFET","50V 200mA 225mW 5.6Ω@2.75V,200mA 500mV 1 N-channel SOT-23 MOSFETs ROHS","LRC","LBSS139LT1G",null,null,"Q22",1,null,"SMD"]
[{"$f":"ROW(A92)-ROW($A$5)","v":87},null,"Resistor","RES SMD 1 OHM 1% 1/10W 0603","Hottech","RI0603L1R00FT",null,null,"R1",1,null,"SMD"]
[{"$f":"ROW(A93)-ROW($A$5)","v":88},null,"Resistor","62.5mW Thick Film Resistor 50V ±100ppm/℃ ±1% 100kΩ 0402 Chip Resistor - Surface Mount ROHS","Yageo","RC0402FR-07100KL",null,null,"R2, R27, R40, R44, R46, R71, R114, R238, R240, R242",10,null,"SMD"]
[{"$f":"ROW(A94)-ROW($A$5)","v":89},null,"Resistor","62.5mW 8.45kΩ 50V Thick Film Resistor ±100ppm/℃ ±1% 0402 Chip Resistor - Surface Mount RoHS","Yageo","RC0402FR-078K45L",null,null,"R3",1,null,"SMD"]
[{"$f":"ROW(A95)-ROW($A$5)","v":90},null,"Resistor","62.5mW Thick Film Resistor 50V ±100ppm/℃ ±1% 68kΩ 0402 Chip Resistor - Surface Mount ROHS","Yageo","RC0402FR-0768KL",null,null,"R4",1,null,"SMD"]
[{"$f":"ROW(A96)-ROW($A$5)","v":91},null,"Resistor","62.5mW Thick Film Resistor 50V ±100ppm/℃ ±1% 10kΩ 0402 Chip Resistor - Surface Mount ROHS","Yageo","RC0402FR-0710KL",null,null,"R5, R16, R18, R29, R36, R39, R49, R100, R104, R105, R106, R113, R115, R116, R120, R128, R140, R142, R147, R155, R158, R185, R186, R187, R191, R192, R193, R194, R195, R198, R199, R201, R202, R205, R228, R229, R230, R234, R246",39,null,"SMD"]
[{"$f":"ROW(A97)-ROW($A$5)","v":92},null,"Resistor","62.5mW Thick Film Resistors 50V ±100ppm/℃ ±1% 4.7kΩ 0402 Chip Resistor - Surface Mount ROHS","Yageo","RC0402FR-074K7L",null,null,"R6, R25, R37, R38, R45, R64, R73, R74, R80, R103, R107, R108, R132, R134, R135, R141, R143, R144, R148, R175, R178, R179, R181, R182, R206, R211, R213, R218, R220, R221, R244, R247",32,null,"SMD"]
[{"$f":"ROW(A98)-ROW($A$5)","v":93},null,"Resistor","51.1kΩ 62.5mW 50V Thick Film Resistor ±100ppm/℃ ±1% 0402 Chip Resistor - Surface Mount RoHS","Yageo","RC0402FR-0751K1L",null,null,"R7",1,null,"SMD"]
[{"$f":"ROW(A99)-ROW($A$5)","v":94},null,"Resistor","12kΩ 62.5mW 50V Thick Film Resistor ±100ppm/℃ ±1% 0402 Chip Resistor - Surface Mount RoHS","Yageo","RC0402FR-0712KL",null,null,"R8",1,null,"SMD"]
[{"$f":"ROW(A100)-ROW($A$5)","v":95},null,"Resistor","RES 0 OHM 1206 JUMPER 1/4W SMD","Hottech","RI1206L000JT",null,null,"R9, R166",2,null,"SMD"]
[{"$f":"ROW(A101)-ROW($A$5)","v":96},null,"Resistor","62.5mW Thick Film Resistor 50V ±100ppm/℃ ±1% 105kΩ 0402 Chip Resistor - Surface Mount ROHS","Yageo","RC0402FR-07105KL",null,null,"R11",1,null,"SMD"]
[{"$f":"ROW(A102)-ROW($A$5)","v":97},null,"Resistor","62.5mW 52.3kΩ 50V Thick Film Resistor ±100ppm/℃ ±1% 0402 Chip Resistor - Surface Mount RoHS","Yageo","RC0402FR-0752K3L",null,null,"R12",1,null,"SMD"]
[{"$f":"ROW(A103)-ROW($A$5)","v":98},null,"Resistor","62.5mW Thick Film Resistor 50V ±100ppm/℃ ±1% 84.5kΩ 0402 Chip Resistor - Surface Mount ROHS","Yageo","RC0402FR-0784K5L",null,null,"R14",1,null,"SMD"]
[{"$f":"ROW(A104)-ROW($A$5)","v":99},null,"Resistor","62.5mW Thick Film Resistor 50V ±100ppm/℃ ±1% 100Ω 0402 Chip Resistor - Surface Mount ROHS","Yageo","RC0402FR-07100RL",null,null,"R15, R33, R121, R152, R153",5,null,"SMD"]
[{"$f":"ROW(A105)-ROW($A$5)","v":100},null,"Resistor","62.5mW 0Ω 50V ±1% Thick Film Resistors 0402 Chip Resistor - Surface Mount ROHS","Yageo","RC0402FR-070RL",null,null,"R17, R23, R30, R31, R56, R57, R58, R59, R61, R65, R66, R67, R68, R70, R119, R138, R154, R226, R227, R231, R232",21,null,"SMD"]
[{"$f":"ROW(A106)-ROW($A$5)","v":101},null,"Resistor","25.5kΩ 62.5mW 50V ±100ppm/℃ Thick Film Resistor ±1% 0402 Chip Resistor - Surface Mount RoHS","Yageo","AC0402FR-0725K5L",null,null,"R19",1,null,"SMD"]
[{"$f":"ROW(A107)-ROW($A$5)","v":102},null,"Resistor","62.5mW Thick Film Resistor 50V ±100ppm/℃ ±1% 1.91kΩ 0402 Chip Resistor - Surface Mount ROHS","Yageo","RC0402FR-071K91L",null,null,"R20",1,null,"SMD"]
[{"$f":"ROW(A108)-ROW($A$5)","v":103},null,"Resistor","500mW Thin Film Resistor ±100ppm/℃ ±0.5% 15mΩ 1206 Chip Resistor - Surface Mount ROHS","Yageo","PE1206DRF7W0R015L",null,null,"R21",1,null,"SMD"]
[{"$f":"ROW(A109)-ROW($A$5)","v":104},null,"Resistor","62.5mW Thick Film Resistor 50V ±100ppm/℃ ±1% 34kΩ 0402 Chip Resistor - Surface Mount ROHS","Yageo","RC0402FR-0734KL",null,null,"R22",1,null,"SMD"]
[{"$f":"ROW(A110)-ROW($A$5)","v":105},null,"Resistor","62.5mW Thick Film Resistor 50V ±100ppm/℃ ±1% 2.2kΩ 0402 Chip Resistor - Surface Mount ROHS","Yageo","RC0402FR-072K2L",null,null,"R24, R34, R35, R51, R52, R63, R72, R76, R129, R130, R131, R208, R209, R210, R215, R216, R217",17,null,"SMD"]
[{"$f":"ROW(A111)-ROW($A$5)","v":106},null,"Resistor","62.5mW 499kΩ 50V Thick Film Resistor ±100ppm/℃ ±1% 0402 Chip Resistor - Surface Mount RoHS","Yageo","RC0402FR-07499KL",null,null,"R26, R241",2,null,"SMD"]
[{"$f":"ROW(A112)-ROW($A$5)","v":107},null,"Resistor","50V Thick Film Resistors 62.5mW 22Ω ±1% ±100ppm/℃ 0402 Chip Resistor - Surface Mount ROHS","Yageo","RC0402FR-0722RL",null,null,"R41, R43, R47, R48, R60, R62, R69, R96, R97, R98, R99, R109, R110, R122, R123, R124, R125, R126, R127, R162, R163, R164, R165, R167, R168, R171, R172",27,null,"SMD"]
[{"$f":"ROW(A113)-ROW($A$5)","v":108},null,"Resistor","62.5mW 1MΩ 50V Thick Film Resistor ±100ppm/℃ ±1% 0402 Chip Resistor - Surface Mount RoHS","Yageo","RC0402FR-071ML",null,null,"R42",1,null,"SMD"]
[{"$f":"ROW(A114)-ROW($A$5)","v":109},null,"Resistor","62.5mW Thick Film Resistor 50V ±100ppm/℃ ±1% 15kΩ 0402 Chip Resistor - Surface Mount ROHS","Yageo","RC0402FR-0715KL",null,null,"R50, R139",2,null,"SMD"]
[{"$f":"ROW(A115)-ROW($A$5)","v":110},null,"Resistor","62.5mW Thick Film Resistor 50V ±100ppm/℃ ±1% 1kΩ 0402 Chip Resistor - Surface Mount ROHS","Yageo","RC0402FR-071KL",null,null,"R53, R78, R83, R86, R90, R94, R95, R102, R111, R112, R149, R156, R159, R161, R188, R189, R190, R196, R204, R233, R249, R251, R252",23,null,"SMD"]
[{"$f":"ROW(A116)-ROW($A$5)","v":111},null,"Resistor","62.5mW 4.02Ω 50V Thick Film Resistor ±1% ±200ppm/℃ 0402 Chip Resistor - Surface Mount RoHS","Yageo","RC0402FR-074R02L",null,null,"R54",1,null,"SMD"]
[{"$f":"ROW(A117)-ROW($A$5)","v":112},null,"Resistor","1.2kΩ ±1% 62.5mW 0402 Thick Film Resistor","Yageo","RC0402FR-071K2L",null,null,"R55",1,null,"SMD"]
[{"$f":"ROW(A118)-ROW($A$5)","v":113},null,"Resistor","62.5mW Thick Film Resistor 50V ±1% ±200ppm/℃ 10Ω 0402 Chip Resistor - Surface Mount ROHS","Yageo","RC0402FR-0710RL",null,null,"R77, R81, R82, R85, R87, R88, R91, R92, R151",9,null,"SMD"]
[{"$f":"ROW(A119)-ROW($A$5)","v":114},null,"Resistor","62.5mW Thick Film Resistor 50V ±100ppm/℃ ±1% 75Ω 0402 Chip Resistor - Surface Mount ROHS","Yageo","RC0402FR-0775RL",null,null,"R79, R84, R89, R93",4,null,"SMD"]
[{"$f":"ROW(A120)-ROW($A$5)","v":115},null,"Resistor","220Ω 62.5mW 50V Thick Film Resistor ±100ppm/℃ ±1% 0402 Chip Resistor - Surface Mount RoHS","Yageo","RC0402FR-07220RL",null,null,"R101",1,null,"SMD"]
[{"$f":"ROW(A121)-ROW($A$5)","v":116},null,"Resistor","62.5mW Thick Film Resistor 50V ±100ppm/℃ ±1% 47kΩ 0402 Chip Resistor - Surface Mount ROHS","Yageo","RC0402FR-0747KL",null,null,"R133, R136, R137, R145, R146, R150, R207, R212, R214, R219, R222, R223, R243, R245, R248",15,null,"SMD"]
[{"$f":"ROW(A122)-ROW($A$5)","v":117},null,"Resistor","62.5mW 1.5kΩ 50V Thick Film Resistor ±100ppm/℃ ±1% 0402 Chip Resistor - Surface Mount RoHS","Yageo","RC0402FR-071K5L",null,null,"R169",1,null,"SMD"]
[{"$f":"ROW(A123)-ROW($A$5)","v":118},null,"Resistor","1/16W Thick Film Resistors 50V ±100ppm/℃ ±1% 2.49kΩ 0402 Chip Resistor - Surface Mount ROHS","Yageo","RC0402FR-072K49L",null,null,"R173",1,null,"SMD"]
[{"$f":"ROW(A124)-ROW($A$5)","v":119},null,"Resistor","62.5mW Thick Film Resistor 50V ±100ppm/℃ ±1% 5.6kΩ 0402 Chip Resistor - Surface Mount ROHS","Yageo","RC0402FR-075K6L",null,null,"R197",1,null,"SMD"]
[{"$f":"ROW(A125)-ROW($A$5)","v":120},null,"Resistor","62.5mW Thick Film Resistor 50V ±100ppm/℃ ±1% 590kΩ 0402 Chip Resistor - Surface Mount ROHS","Yageo","AC0402FR-07590KL",null,null,"R200",1,null,"SMD"]
[{"$f":"ROW(A126)-ROW($A$5)","v":121},null,"Resistor","62.5mW Thick Film Resistor 50V ±100ppm/℃ ±1% 3.3kΩ 0402 Chip Resistor - Surface Mount ROHS","Yageo","RC0402FR-073K3L",null,null,"R203",1,null,"SMD"]
[{"$f":"ROW(A127)-ROW($A$5)","v":122},null,"Resistor","62.5mW Thick Film Resistor 50V ±100ppm/℃ ±1% 470Ω 0402 Chip Resistor - Surface Mount ROHS","Yageo","RC0402FR-07470RL",null,null,"R224",1,null,"SMD"]
[{"$f":"ROW(A128)-ROW($A$5)","v":123},null,"Resistor","RES SMD 10K OHM 1% 1/10W 0603","Hottech","RI0603L1002FT",null,null,"R235",1,null,"SMD"]
[{"$f":"ROW(A129)-ROW($A$5)","v":124},null,"Resistor","226kΩ 62.5mW 50V Thick Film Resistor ±100ppm/℃ ±1% 0402 Chip Resistor - Surface Mount RoHS","Yageo","AC0402FR-07226KL",null,null,"R237",1,null,"SMD"]
[{"$f":"ROW(A130)-ROW($A$5)","v":125},null,"Resistor","57kΩ 62.5mW 50V Thick Film Resistor ±100ppm/℃ ±1% 0402 Chip Resistor - Surface Mount RoHS","Yageo","RC0402FR-07357KL",null,null,"R239",1,null,"SMD"]
[{"$f":"ROW(A131)-ROW($A$5)","v":126},null,"Resistor","62.5mW 118kΩ 50V Thick Film Resistor ±100ppm/℃ ±0.5% 0402 Chip Resistor - Surface Mount RoHS","Yageo","RC0402DR-07118KL",null,null,"R250",1,null,"SMD"]
[{"$f":"ROW(A132)-ROW($A$5)","v":127},null,"Switch","Without bracket 50mA 3.5mm 100000 Times 260gf 12V 3mm 2mm Round Button Standing paste SPST SMD Tactile Switches ROHS","XUNPU","TS-1090S-AR02026",null,null,"K1, K3, K4",3,null,"SMD"]
[{"$f":"ROW(A133)-ROW($A$5)","v":128},null,"Switch","Tactile Switch 180gf 3.5mm 7.7mm x 3.55mm Surface Mount, Right Angle","BZCN","TSB001A3518A",null,null,"SW1",1,null,"SMD"]
[{"$f":"ROW(A134)-ROW($A$5)","v":129},null,"Thermistor","10kΩ ±1% 310uA 3435K 100mW ±1% 0603 NTC Thermistors ROHS","Nanjing Shiheng Elec","CMFA 103F3435",null,null,"R236",1,null,"SMD"]
[{"$f":"ROW(A135)-ROW($A$5)","v":130},null,"Transistor","TRANS NPN 40V 0.2A SOT23","Micro Commercial Co","MMBT3904-TP",null,null,"Q4, Q12, Q15, Q16, Q17, Q18, Q19, Q21, Q23, Q24, Q25, Q26, Q27, Q28, Q29, Q30, Q31, Q32, Q33, Q34, Q37, Q38, Q40",23,null,"SMD"]
[{"$f":"ROW(A136)-ROW($A$5)","v":131},null,"Connector","9P Male D-Sub Bend insert 2 3A -50℃~+105℃ Push-Pull D-Sub / VGA Connectors ROHS","Ckmtw(Shenzhen Cankemeng)","D-DMR009PM-D002",null,null,"J4",1,null,"TH"]
[{"$f":"ROW(A137)-ROW($A$5)","v":132},null,"Connector","RJ45Receptacle 1 WithLED Plugin Ethernet Connectors / Modular Connectors (RJ45 RJ11) ROHS","HANRUN(Zhongshan HanRun Elec)","HR911105A",null,null,"J10",1,null,"TH"]
[{"$f":"ROW(A138)-ROW($A$5)","v":133},null,"Connector","2mm 2mm 2 12P 2x6P -40℃~+105℃ 4.3mm Top 2A Square Hole Through Hole Through Hole,P=2mm Headers, Receptacles, Female Sockets RoHS","XFCN","PM200V-12-12-H43",null,null,"J14, J15, J16",3,null,"TH"]
[{"$f":"ROW(A139)-ROW($A$5)","v":134},null,"Connector","XH Header Male Pin 0.098\"(2.50mm) 2 Through Hole Wire To Board / Wire To Wire Connector RoHS","BOOMELE(Boom Precision Elec)","XH-2AW",null,null,"J17",1,null,"TH"]
[{"$f":"ROW(A140)-ROW($A$5)","v":135},null,"Connector","XH Header Male Pin 0.098\"(2.50mm) 2 Through Hole Wire To Board / Wire To Wire Connector RoHS"," \tBOOMELE(Boom Precision Elec)","XH-2A",null,null,"J18",1,null,"TH"]
[{"$f":"ROW(A141)-ROW($A$5)","v":136},null,"LED","60mA Red Lens 615nm~635nm -20℃~+85℃ Red 50° 150mW 1.8V~2.2V DIP-6-2.54mm LED Indication - Discrete ROHS","XINGLIGHT","XL-DZ304SURD/3",null,null,"LED1, LED2",2,null,"TH"]
[{"$f":"ROW(A142)-ROW($A$5)","v":137},null,"Speaker","85dB Active Buzzer (Built-in Driving Circuit) Electromagnetic 3kHz Through Hole,D=9mm Buzzers ROHS","Huaneng","HNB09A05",null,null,"BZ1",1,null,"TH"]